bitfinex/quotes_BTCUSD_20260215
["timestamp","ask_amount","ask_price","bid_price","bid_amount"]
[1771128363275,0.02312176,70017.0,70008.0,0.28567979]
[1771128363553,0.00012,70020.0,70015.0,0.07141286]
[1771128363739,0.02324176,70020.0,70016.0,0.071412]
[1771128363913,0.02324176,70020.0,70013.0,0.07141476]
[1771128364060,0.09465058,70020.0,70013.0,0.07141476]
[1771128364440,0.09465058,70020.0,70015.0,0.07141289]
[1771128364441,0.02324176,70020.0,70015.0,0.07141289]
[1771128364864,0.07141217,70017.0,70007.0,0.006]
[1771128365067,0.0945319,70019.0,70012.0,0.07141601]
[1771128365277,0.07141036,70018.0,70013.0,0.002]
[1771128365479,0.02312176,70017.0,70012.0,0.07141601]
[1771128365634,0.02312176,70017.0,70007.0,0.62788431]
[1771128365635,0.02312176,70017.0,70007.0,0.3422]
[1771128365873,5e-05,70028.0,70027.0,0.07140103]
[1771128366068,1e-08,70038.0,70035.0,0.07139198]
[1771128366316,1e-08,70038.0,70025.0,0.3422]
[1771128366906,1e-08,70038.0,70037.0,0.07139083]
[1771128367155,1e-08,70038.0,70036.0,0.07139149]
[1771128367356,1e-08,70038.0,70035.0,0.07139287]
[1771128367510,1e-08,70038.0,70036.0,0.07139145]
[1771128367970,1e-08,70038.0,70037.0,0.07139083]
[1771128368174,0.0004,70045.0,70033.0,0.53737878]
[1771128368403,0.95615215,70043.0,69990.0,0.00012]
[1771128368611,0.95615215,70043.0,70010.0,0.00025041]
[1771128368612,0.02312176,70018.0,70010.0,0.00025041]
[1771128368815,0.07141181,70017.0,70006.0,0.07162211]
[1771128369023,0.02312176,70018.0,70006.0,0.0002]
[1771128369236,0.02312176,70018.0,70010.0,0.07141823]
[1771128369852,0.02312176,70029.0,70010.0,0.00012]
[1771128370024,0.07140237,70026.0,70017.0,0.07141052]
[1771128370242,0.34216,70031.0,70010.0,0.00012]
[1771128370448,0.0004,70045.0,70039.0,0.07138879]
[1771128370666,0.00025038,70040.0,70039.0,0.07138879]
[1771128371316,0.0004,70045.0,70033.0,0.34216]
[1771128371549,0.06721594,70044.0,70034.0,0.02384989]
[1771128371771,0.06721594,70044.0,70040.0,0.07138743]
[1771128372011,0.07137563,70052.0,70040.0,0.07138743]
[1771128372012,0.0004,70054.0,70053.0,0.07137453]
[1771128372484,0.07136562,70062.0,70053.0,0.07137453]
[1771128372731,0.06721594,70059.0,70053.0,0.07137453]
[1771128372966,0.06646787,70059.0,70053.0,0.07137453]
[1771128373400,0.06646787,70059.0,70052.0,0.07137545]
[1771128374102,0.06646787,70059.0,70051.0,0.07137575]
[1771128374103,0.002,70054.0,70053.0,0.07137453]
[1771128374285,1e-08,70077.0,70050.0,0.00012]
[1771128374510,1e-08,70077.0,70062.0,0.02496251]
[1771128374661,1e-08,70077.0,70067.0,0.28543709]
[1771128374861,1e-08,70077.0,70066.0,0.0713606]
[1771128375186,1e-08,70077.0,70065.0,0.0713623]
[1771128375394,1e-08,70077.0,70066.0,0.52838013]
[1771128375530,1e-08,70077.0,70072.0,0.07135475]
[1771128375960,0.00012,70080.0,70073.0,0.07135406]
[1771128376165,0.00012,70080.0,70073.0,0.34212]
[1771128376366,0.00012,70080.0,70073.0,0.41347387]
[1771128376571,0.00012,70080.0,70073.0,0.41347414]
[1771128376797,0.00012,70080.0,70073.0,0.34212]
[1771128377003,0.00012,70080.0,70074.0,0.07135281]
[1771128377214,0.00012,70080.0,70075.0,0.07135149]
[1771128377564,0.28535477,70089.0,70075.0,0.07135149]
[1771128377565,0.02338603,70097.0,70075.0,0.02321241]
[1771128377784,0.01172849,70106.0,70099.0,0.07089291]
[1771128377993,0.01172849,70106.0,70084.0,0.52838013]
[1771128377994,0.00025033,70100.0,70091.0,0.34208]
[1771128378198,0.00025033,70100.0,70091.0,0.41341581]
[1771128378428,0.00025033,70100.0,70091.0,0.34208]
[1771128378648,0.494881,70099.0,70089.0,0.34208]
[1771128378863,0.07132964,70098.0,70087.0,0.07133931]
[1771128379083,0.0713336,70094.0,70083.0,0.07134318]
[1771128379298,0.0713336,70094.0,70080.0,0.00012]
[1771128379299,0.07133261,70095.0,70080.0,0.00012]
[1771128379492,0.07133317,70094.0,70080.0,0.00012]
[1771128379694,0.07133317,70094.0,70082.0,0.07134499]
[1771128379994,0.07133425,70093.0,70083.0,0.07134301]
[1771128380465,0.07133894,70088.0,70080.0,0.00012]
[1771128380663,0.494881,70091.0,70080.0,0.00012]
[1771128380883,0.02338603,70090.0,70080.0,0.00012]
[1771128381085,0.07134061,70087.0,70080.0,0.00012]
[1771128381442,5e-05,70097.0,70096.0,0.07133074]
[1771128381643,5e-05,70097.0,70092.0,0.07133395]
[1771128381847,0.0004,70095.0,70091.0,0.07133565]
[1771128382029,0.0004,70095.0,70092.0,0.07133457]
[1771128382580,0.0004,70095.0,70084.0,0.52838013]
[1771128382780,0.0004,70095.0,70092.0,0.07133427]
[1771128383010,0.0004,70095.0,70086.0,0.52838013]
[1771128383429,0.0004,70095.0,70092.0,0.07133457]
[1771128383636,0.0024,70095.0,70090.0,0.07133656]
[1771128383841,0.0024,70095.0,70092.0,0.0713346]
[1771128384470,0.0024,70095.0,70080.0,0.00012]
[1771128384724,0.02338603,70089.0,70080.0,0.00012]
[1771128384925,0.02338603,70088.0,70080.0,0.00012]
[1771128385131,0.0024,70095.0,70083.0,0.52838013]
[1771128385307,0.07373185,70095.0,70085.0,0.07134117]
[1771128385510,0.07373185,70095.0,70084.0,0.07134222]
[1771128385668,0.07173189,70095.0,70080.0,0.00012]
[1771128385869,0.07133379,70093.0,70080.0,0.00012]
[1771128386073,0.0004,70095.0,70080.0,0.00012]
[1771128386074,0.07133682,70091.0,70080.0,0.07146691]
[1771128386274,0.07133692,70090.0,70081.0,0.07134571]
[1771128386518,0.07134163,70086.0,70070.0,0.07147619]
[1771128386721,0.494881,70086.0,70078.0,0.07134889]
[1771128386922,5e-05,70088.0,70070.0,0.33788824]
[1771128387076,5e-05,70088.0,70080.0,0.07134615]
[1771128387281,5e-05,70088.0,70070.0,0.56515565]
[1771128387478,5e-05,70088.0,70079.0,0.07134721]
[1771128387672,5e-05,70088.0,70080.0,0.07134698]
[1771128388081,0.00118151,70087.0,70080.0,0.07134698]
[1771128388282,0.00118151,70087.0,70079.0,0.07134608]
[1771128388480,0.00118151,70087.0,70080.0,0.07134684]
[1771128388683,0.07252148,70087.0,70077.0,0.07134989]
[1771128388889,0.001,70086.0,70079.0,0.07134799]
[1771128389150,0.001,70086.0,70070.0,0.00012]
[1771128389151,0.494881,70086.0,70070.0,0.00012]
[1771128389357,0.494881,70081.0,70070.0,0.00012]
[1771128389566,1e-08,70089.0,70088.0,0.07133888]
[1771128389773,1e-08,70089.0,70086.0,0.07134005]
[1771128389977,1e-08,70089.0,70074.0,0.07135314]
[1771128390175,0.01340744,70099.0,70074.0,0.07135314]
[1771128390176,0.494881,70101.0,70084.0,0.07134295]
[1771128390350,0.494881,70101.0,70081.0,0.52838013]
[1771128390562,0.00845995,70096.0,70080.0,0.03677552]
[1771128390768,0.00845995,70096.0,70091.0,0.07133569]
[1771128390963,0.00845995,70096.0,70088.0,0.011]
[1771128391227,0.00845995,70096.0,70090.0,0.07133665]
[1771128391807,0.494881,70095.0,70082.0,0.07134403]
[1771128392007,0.07133583,70091.0,70080.0,0.00012]
[1771128392361,0.07133583,70091.0,70082.0,0.07134484]
[1771128392562,0.494881,70092.0,70081.0,0.07134586]
[1771128392867,0.3379751,70100.0,70080.0,0.00012]
[1771128392868,1e-08,70097.0,70096.0,0.07133074]
[1771128392992,1e-08,70097.0,70094.0,0.07133202]
[1771128393196,1e-08,70097.0,70088.0,0.28535228]
[1771128393397,1e-08,70097.0,70083.0,0.52838013]
[1771128393602,1e-08,70097.0,70092.0,0.07133381]
[1771128393798,1e-08,70097.0,70092.0,0.07133434]
[1771128394005,1e-08,70097.0,70083.0,0.55159254]
[1771128394203,1e-08,70097.0,70094.0,0.07133257]
[1771128394408,1e-08,70097.0,70090.0,0.07133591]
[1771128394633,1e-08,70097.0,70084.0,0.07134295]
[1771128394842,1e-08,70097.0,70096.0,0.015]
[1771128394843,0.00300001,70097.0,70096.0,0.015]
[1771128395171,1e-08,70097.0,70083.0,0.52838013]
[1771128395522,0.00020686,70100.0,70096.0,0.07133074]
[1771128395709,0.00020686,70100.0,70099.0,0.07082769]
[1771128395921,0.00020686,70100.0,70094.0,0.07133278]
[1771128396051,0.00020686,70100.0,70099.0,0.07132769]
[1771128396252,0.00020686,70100.0,70087.0,0.03665552]
[1771128396253,0.00020686,70100.0,70096.0,0.012]
[1771128396506,0.00020686,70100.0,70087.0,0.03665552]
[1771128396760,0.00020686,70100.0,70082.0,0.52838013]
[1771128397009,0.00320686,70100.0,70080.0,0.02353241]
[1771128397215,0.49808786,70100.0,70091.0,0.07133531]
[1771128397425,0.494881,70097.0,70080.0,0.00032]
[1771128397640,0.01340744,70088.0,70072.0,0.0002]
[1771128397839,0.01340744,70085.0,70072.0,0.0002]
[1771128397987,0.494881,70082.0,70072.0,0.07155448]
[1771128398188,0.494881,70082.0,70072.0,0.0002]
[1771128398594,0.56622802,70082.0,70073.0,0.07135385]
[1771128398786,0.07134621,70081.0,70072.0,0.07155509]
[1771128398981,0.07084705,70080.0,70072.0,0.0002]
[1771128399410,0.494881,70077.0,70072.0,0.0002]
[1771128399584,0.56623268,70076.0,70072.0,0.0002]
[1771128399964,0.56623268,70076.0,70072.0,0.0182]
[1771128400222,0.07135219,70075.0,70072.0,0.0182]
[1771128400444,0.07135318,70074.0,70072.0,0.0182]
[1771128400580,0.07135919,70069.0,70060.0,0.07148739]
[1771128400790,0.07135721,70070.0,70061.0,0.00055479]
[1771128400988,0.07136096,70067.0,70061.0,0.00055479]
[1771128401205,0.07136096,70067.0,70060.0,0.00016347]
[1771128401445,0.07136096,70067.0,70061.0,0.00055479]
[1771128401645,0.0713614,70066.0,70060.0,0.00016347]
[1771128402229,0.07136191,70066.0,70061.0,0.015]
[1771128402440,5e-05,70073.0,70061.0,0.015]
[1771128402608,1e-08,70080.0,70065.0,0.52846257]
[1771128402809,1e-08,70080.0,70069.0,0.28543012]
[1771128403059,1e-08,70080.0,70066.0,0.03721031]
[1771128403060,1e-08,70080.0,70075.0,0.07135155]
[1771128403944,1e-08,70080.0,70072.0,0.07155426]
[1771128404159,1e-08,70080.0,70072.0,0.0002]
[1771128404542,0.07134714,70080.0,70072.0,0.0002]
[1771128404781,0.52381899,70080.0,70064.0,0.0002]
[1771128404986,0.003,70066.0,70061.0,0.004]
[1771128405189,0.34188,70070.0,70061.0,0.00055479]
[1771128405335,0.34188,70070.0,70062.0,0.07136519]
[1771128405537,0.34188,70070.0,70061.0,0.00055479]
[1771128405741,0.34188,70070.0,70065.0,0.0713614]
[1771128406193,0.01352744,70090.0,70066.0,0.52825045]
[1771128406399,0.01352744,70090.0,70062.0,0.66712175]
[1771128406400,0.00940652,70086.0,70085.0,0.07134194]
[1771128406546,0.00940652,70086.0,70085.0,0.07084194]
[1771128406759,0.00940652,70086.0,70077.0,0.07134952]
[1771128406987,0.00940652,70086.0,70079.0,0.07134805]
[1771128407589,0.00984074,70086.0,70080.0,0.07134648]
[1771128407749,0.00984074,70086.0,70084.0,0.07134271]
[1771128408102,0.00984074,70086.0,70079.0,0.07134706]
[1771128408302,0.01284074,70086.0,70079.0,0.004]
[1771128408453,0.01284074,70086.0,70080.0,0.07134675]
[1771128408852,0.01284074,70086.0,70079.0,0.004]
[1771128409070,0.00984074,70086.0,70084.0,0.07134261]
[1771128409597,0.01284074,70086.0,70084.0,0.003]
[1771128410397,0.01267722,70086.0,70084.0,0.003]
[1771128410601,0.00967722,70086.0,70080.0,0.07134666]
[1771128411016,0.01667722,70086.0,70076.0,0.07135035]
[1771128411227,0.53349621,70086.0,70076.0,0.07135035]
[1771128411433,0.6048374,70086.0,70076.0,0.07135035]
[1771128411670,0.6148374,70086.0,70084.0,0.003]
[1771128411860,0.6048374,70086.0,70076.0,0.07135035]
[1771128412018,0.6048374,70086.0,70077.0,0.00055479]
[1771128412019,0.53349621,70086.0,70077.0,0.00055479]
[1771128412234,0.52381899,70084.0,70070.0,0.00012]
[1771128412575,0.52381899,70080.0,70070.0,0.07147688]
[1771128412779,0.07134805,70079.0,70070.0,0.00067479]
[1771128413084,0.9370483,70078.0,70070.0,0.00067479]
[1771128413223,0.86569899,70078.0,70070.0,0.07203129]
[1771128413575,0.86569899,70078.0,70070.0,0.0714765]
[1771128413751,0.86569899,70078.0,70071.0,0.07135604]
[1771128414116,0.34188,70078.0,70060.0,0.00012]
[1771128414317,0.52381899,70077.0,70063.0,0.07136362]
[1771128414570,0.52381899,70074.0,70064.0,0.07136332]
[1771128414877,0.009243,70073.0,70064.0,0.00055479]
[1771128415078,0.009243,70073.0,70071.0,0.003]
[1771128415322,0.009243,70073.0,70064.0,0.55820225]
[1771128415448,0.009243,70073.0,70064.0,0.55764746]
[1771128415663,0.009243,70073.0,70069.0,0.07135752]
[1771128415864,0.009243,70073.0,70067.0,0.07136026]
[1771128416070,0.009243,70073.0,70066.0,0.07136128]
[1771128416267,0.009243,70073.0,70068.0,0.07135878]
[1771128416492,0.009243,70073.0,70069.0,0.07135821]
[1771128416696,0.009243,70073.0,70070.0,0.07135717]
[1771128416894,0.009243,70073.0,70069.0,0.07135821]
[1771128417071,0.014243,70073.0,70071.0,0.015]
[1771128417538,0.009243,70073.0,70067.0,0.07135993]
[1771128417816,0.009243,70073.0,70069.0,0.014]
[1771128417817,0.014243,70073.0,70069.0,0.014]
[1771128417991,0.009243,70073.0,70068.0,0.07135921]
[1771128418220,0.009243,70073.0,70066.0,0.0713609]
[1771128418390,0.014243,70073.0,70071.0,0.015]
[1771128418593,0.009243,70073.0,70066.0,0.07136122]
[1771128418815,0.009243,70073.0,70063.0,0.0002]
[1771128419018,0.0713553,70072.0,70064.0,0.07191799]
[1771128419598,0.009243,70073.0,70065.0,0.0713623]
[1771128419791,0.08059755,70073.0,70065.0,0.0713623]
[1771128420043,0.08659755,70073.0,70069.0,0.018]
[1771128420280,0.08059755,70073.0,70064.0,0.00055479]
[1771128420484,0.00012,70070.0,70048.0,0.52769566]
[1771128420652,0.52381899,70067.0,70052.0,0.07137497]
[1771128420855,0.07136341,70064.0,70055.0,0.07137195]
[1771128421014,0.59517962,70067.0,70050.0,0.00012]
[1771128421015,0.52381899,70067.0,70050.0,0.00012]
[1771128421204,0.07136337,70064.0,70050.0,0.00012]
[1771128421421,0.07136556,70062.0,70053.0,0.07137358]
[1771128421637,0.07136442,70063.0,70057.0,0.0182]
[1771128421837,0.52381899,70066.0,70057.0,0.0182]
[1771128422038,0.07136525,70063.0,70057.0,0.01824347]
[1771128422449,0.59518218,70066.0,70057.0,0.01824347]
[1771128422738,0.07136236,70065.0,70057.0,0.08961379]
[1771128422945,0.34192,70069.0,70060.0,0.52769566]
[1771128423125,0.07135925,70068.0,70059.0,0.07136841]
[1771128423350,0.007,70064.0,70057.0,0.00024347]
[1771128423505,0.07135925,70068.0,70061.0,0.07136634]
[1771128423704,0.009243,70065.0,70057.0,0.00024347]
[1771128423908,0.52381899,70064.0,70042.0,0.52769566]
[1771128424162,0.52381899,70062.0,70050.0,0.00025038]
[1771128424340,0.07137754,70051.0,70042.0,0.07138487]
[1771128424536,0.07137754,70051.0,70040.0,0.0300718]
[1771128424537,0.07137394,70054.0,70040.0,0.0300718]
[1771128424847,0.34192,70056.0,70040.0,0.00012]
[1771128425043,0.28549624,70054.0,70042.0,0.07138532]
[1771128425315,0.52381899,70055.0,70040.0,0.00012]
[1771128425519,0.07137374,70054.0,70045.0,0.07138195]
[1771128425717,0.07137533,70053.0,70045.0,0.07138195]
[1771128426141,0.07137533,70053.0,70049.0,0.0002]
[1771128426370,0.34192,70056.0,70049.0,0.07157844]
[1771128426585,0.07137432,70054.0,70049.0,0.0002]
[1771128426787,0.006,70053.0,70049.0,0.0002]
[1771128427148,0.009243,70052.0,70049.0,0.0002]
[1771128427943,0.009243,70052.0,70042.0,0.0002]
[1771128428460,0.07138231,70046.0,70042.0,0.0002]
[1771128428658,0.07138282,70045.0,70042.0,0.0002]
[1771128428861,0.07138858,70040.0,70033.0,0.0299518]
[1771128429069,0.07138525,70043.0,70035.0,0.07139233]
[1771128429271,0.07138369,70045.0,70037.0,0.07139079]
[1771128429626,0.1706218,70097.0,70044.0,0.0005]
[1771128429856,0.01332672,70096.0,70095.0,0.07133176]
[1771128430204,0.52421899,70108.0,70080.0,0.336998]
[1771128430205,0.009243,70107.0,70099.0,0.06208016]
[1771128430369,0.53306199,70107.0,70090.0,0.00012]
[1771128430528,0.0004,70108.0,70091.0,0.52769566]
[1771128430730,0.0858,70112.0,70100.0,0.00012]
[1771128430942,0.07131645,70111.0,70100.0,0.07144653]
[1771128431167,0.07131548,70111.0,70101.0,0.07132564]
[1771128431365,0.07131661,70110.0,70100.0,0.00012]
[1771128431575,0.07131661,70110.0,70100.0,0.07144612]
[1771128431915,0.0862346,70112.0,70100.0,0.00012]
[1771128432356,0.14321579,70112.0,70100.0,0.07144625]
[1771128432557,0.006,70110.0,70100.0,0.00012]
[1771128432754,0.07131759,70109.0,70100.0,0.00012]
[1771128433009,0.14321587,70112.0,70100.0,0.07144628]
[1771128433213,0.0004,70107.0,70100.0,0.07144628]
[1771128433401,0.0004,70107.0,70100.0,0.00012]
[1771128434269,0.29648548,70160.0,70110.0,0.00012]
[1771128434472,0.07126771,70158.0,70139.0,0.0004507]
[1771128434671,0.01155275,70160.0,70130.0,0.0299518]
[1771128434878,0.61811937,70149.0,70132.0,0.28517558]
[1771128435077,0.61811937,70149.0,70138.0,0.07128781]
[1771128435299,0.07128292,70144.0,70130.0,0.0299518]
[1771128435470,0.07128292,70144.0,70135.0,0.0712907]
[1771128435820,0.07128292,70144.0,70135.0,0.07129088]
[1771128436022,0.07128087,70146.0,70136.0,0.07128988]
[1771128436653,0.005,70144.0,70135.0,0.07129088]
[1771128436854,0.07127898,70147.0,70137.0,0.07128825]
[1771128437209,0.07128022,70146.0,70137.0,0.07128825]
[1771128437914,0.28510064,70151.0,70136.0,0.07129006]
[1771128437915,0.03368482,70169.0,70136.0,0.336878]
[1771128438088,0.03368482,70169.0,70163.0,0.025]
[1771128438089,1e-08,70164.0,70163.0,0.025]
[1771128438700,1e-08,70164.0,70163.0,0.09626263]
[1771128438899,1e-08,70164.0,70150.0,0.336878]
[1771128438900,0.0001156,70164.0,70160.0,0.54138231]
[1771128439226,0.07125162,70174.0,70160.0,0.03008217]
[1771128439552,0.0712545,70171.0,70160.0,0.10134748]
[1771128439754,0.07125415,70172.0,70160.0,0.10134748]
[1771128439905,0.0003904,70181.0,70162.0,0.07126268]
[1771128440083,0.0003904,70181.0,70161.0,0.0299518]
[1771128440288,0.07124844,70177.0,70167.0,0.09625815]
[1771128440487,0.061261,70176.0,70166.0,0.09625951]
[1771128440695,0.061261,70176.0,70167.0,0.025]
[1771128441116,0.01410092,70228.0,70209.0,0.07121561]
[1771128441323,0.336878,70230.0,70199.0,0.07122578]
[1771128441559,0.65844715,70227.0,70198.0,0.025]
[1771128441719,0.07121828,70207.0,70198.0,0.025]
[1771128441923,0.65844715,70227.0,70197.0,0.336878]
[1771128442124,0.54684204,70220.0,70200.0,0.07122494]
[1771128442329,0.07121153,70214.0,70200.0,0.0299518]
[1771128442526,0.07121153,70214.0,70201.0,0.0299518]
[1771128442893,0.54727682,70220.0,70201.0,0.0299518]
[1771128443052,0.07120696,70218.0,70202.0,0.0299518]
[1771128443251,0.00043478,70220.0,70210.0,0.00012]
[1771128443463,0.07164006,70220.0,70210.0,0.00012]
[1771128443662,0.07120599,70219.0,70210.0,0.00012]
[1771128443831,0.07120854,70217.0,70210.0,0.00012]
[1771128444057,0.07120599,70219.0,70210.0,0.00012]
[1771128444260,0.01543478,70220.0,70213.0,0.0712111]
[1771128444480,0.01543478,70220.0,70210.0,0.00012]
[1771128444481,0.54684204,70291.0,70240.0,0.56638231]
[1771128444682,0.54684204,70291.0,70239.0,0.00743952]
[1771128444683,0.54684204,70289.0,70251.0,0.025]
[1771128444921,0.54684204,70287.0,70248.0,0.54138231]
[1771128445120,5e-05,70286.0,70260.0,0.336878]
[1771128445344,0.32031806,70288.0,70266.0,0.07115716]
[1771128445665,0.07113901,70285.0,70267.0,0.025]
[1771128445803,0.07114394,70281.0,70267.0,0.025]
[1771128446001,0.07114394,70281.0,70260.0,0.336878]
[1771128446002,0.029,70287.0,70248.0,0.003]
[1771128446208,0.07115441,70270.0,70251.0,0.07117336]
[1771128446410,0.07115746,70267.0,70253.0,0.02466328]
[1771128446619,0.07115605,70269.0,70253.0,0.02466328]
[1771128446820,0.54684204,70278.0,70255.0,0.02466328]
[1771128447028,0.07116829,70256.0,70248.0,0.003]
[1771128447237,0.07118364,70241.0,70239.0,1e-08]
[1771128447438,0.54684204,70240.0,70239.0,1e-08]
[1771128447635,0.07120409,70221.0,70219.0,1e-08]
[1771128447859,0.07119941,70226.0,70219.0,1e-08]
[1771128448061,0.54684204,70233.0,70219.0,1e-08]
[1771128448258,0.07120372,70222.0,70219.0,1e-08]
[1771128448509,0.54697228,70233.0,70219.0,1e-08]
[1771128448685,0.007,70221.0,70219.0,1e-08]
[1771128448890,0.00013024,70233.0,70220.0,0.09586781]
[1771128449171,0.00013024,70233.0,70220.0,0.02466328]
[1771128449376,0.07120447,70221.0,70219.0,1e-08]
[1771128449581,0.04982022,70228.0,70219.0,1e-08]
[1771128449836,0.07119694,70228.0,70219.0,1e-08]
[1771128450029,0.0004,70286.0,70219.0,1e-08]
[1771128450236,0.0004,70286.0,70248.0,0.02466328]
[1771128450237,0.00756846,70278.0,70248.0,0.02466328]
[1771128450431,0.0787146,70278.0,70260.0,0.336878]
[1771128450633,0.0787146,70278.0,70268.0,0.07115613]
[1771128450634,0.00013016,70278.0,70268.0,0.07115613]
[1771128450803,0.00013016,70278.0,70261.0,0.02466328]
[1771128451020,0.00013016,70278.0,70263.0,0.07116021]
[1771128451292,0.28452483,70293.0,70260.0,0.336878]
[1771128451293,0.54684204,70327.0,70292.0,6.495e-05]
[1771128451489,0.54684204,70327.0,70291.0,0.00043505]
[1771128451490,0.54684204,70327.0,70304.0,0.336878]
[1771128451724,0.94274401,70351.0,70307.0,0.07111577]
[1771128451921,0.336878,70350.0,70321.0,0.02466328]
[1771128452120,0.54684204,70349.0,70321.0,0.02205919]
[1771128452392,0.54684204,70359.0,70321.0,0.02205919]
[1771128452557,0.54684204,70359.0,70322.0,0.30532]
[1771128452738,0.54684204,70339.0,70308.0,0.0912]
[1771128452939,0.54684204,70339.0,70304.0,0.00013012]
[1771128453171,0.0008568,70339.0,70305.0,0.43248]
[1771128453365,0.0008568,70339.0,70307.0,0.02466328]
[1771128453540,0.00014699,70317.0,70307.0,0.02466328]
[1771128453748,0.3340338,70350.0,70307.0,0.02466328]
[1771128453749,0.34216,70408.0,70355.0,0.02466328]
[1771128454099,0.53941501,70379.0,70346.0,0.34124]
[1771128454247,0.00529171,70378.0,70348.0,0.56604559]
[1771128454443,0.54958204,70392.0,70350.0,0.49087986]
[1771128454644,0.54958204,70392.0,70351.0,0.54138231]
[1771128454871,0.55001604,70392.0,70367.0,0.07090526]
[1771128455046,0.55001604,70392.0,70349.0,0.54138231]
[1771128455235,0.54684204,70389.0,70348.0,0.02466328]
[1771128455443,0.54684204,70389.0,70331.0,0.03234816]
[1771128455444,0.54684204,70377.0,70331.0,0.57373047]
[1771128455650,0.34116,70378.0,70332.0,0.33172]
[1771128455848,0.003174,70392.0,70334.0,0.02466328]
[1771128455849,0.34116,70383.0,70334.0,0.02466328]
[1771128456066,0.34116,70383.0,70340.0,0.49087986]
[1771128456272,0.34116,70383.0,70341.0,0.95638231]
[1771128456469,0.00031649,70367.0,70342.0,0.02466328]
[1771128456722,0.00031649,70367.0,70330.0,1.05962454]
[1771128456723,0.28423153,70366.0,70330.0,0.09116]
[1771128456901,0.54684204,70365.0,70327.0,0.43224]
[1771128457099,0.54684204,70365.0,70321.0,0.54138231]
[1771128457100,0.54684204,70365.0,70329.0,0.02466328]
[1771128457368,0.00031649,70367.0,70329.0,0.54138231]
[1771128457583,0.00031649,70367.0,70328.0,0.43224]
[1771128457584,0.00031649,70367.0,70335.0,0.02466328]
[1771128457802,0.49087986,70360.0,70311.0,0.54138231]
[1771128458008,0.54684204,70358.0,70320.0,0.34104]
[1771128458223,0.54672204,70358.0,70350.0,0.00012]
[1771128458415,0.54684204,70351.0,70340.0,0.00012]
[1771128458626,0.54684204,70349.0,70330.0,0.00012]
[1771128458933,0.00012,70350.0,70320.0,0.00012]
[1771128458934,0.07109019,70334.0,70320.0,0.00012]
[1771128459062,0.28434112,70339.0,70320.0,0.07122342]
[1771128459294,0.00012,70340.0,70320.0,0.00012]
[1771128459499,0.00012,70330.0,70300.0,0.02478328]
[1771128459735,0.54684204,70326.0,70308.0,0.28446162]
[1771128459934,0.54684204,70326.0,70315.0,0.07110808]
[1771128460084,0.54684204,70326.0,70300.0,0.00012]
[1771128460294,0.54684204,70326.0,70312.0,0.07111083]
[1771128460490,0.00012,70340.0,70330.0,0.00012]
[1771128460842,0.00012,70350.0,70330.0,0.00024]
[1771128461055,0.00012,70350.0,70329.0,0.09093875]
[1771128461261,0.00025,70350.0,70330.0,0.00012]
[1771128461456,0.00025,70350.0,70342.0,0.0710808]
[1771128461616,0.00025,70350.0,70330.0,0.09124]
[1771128461821,0.0009792,70404.0,70369.0,0.02468153]
[1771128462024,1e-08,70400.0,70399.0,0.053795]
[1771128462223,1e-08,70400.0,70398.0,0.07102399]
[1771128462453,0.28401496,70419.0,70391.0,0.09112]
[1771128462454,0.00012,70433.0,70391.0,0.02468153]
[1771128462650,0.00150391,70418.0,70396.0,0.02468153]
[1771128462823,0.00150391,70418.0,70402.0,0.28407963]
[1771128463190,0.00150391,70418.0,70406.0,0.0710161]
[1771128463394,0.00025011,70433.0,70403.0,0.43192]
[1771128463550,0.49087986,70430.0,70385.0,0.02335881]
[1771128463749,0.56298241,70432.0,70391.0,0.07103134]
[1771128463953,0.56298241,70432.0,70387.0,0.03234816]
[1771128464153,0.00025011,70433.0,70393.0,0.02335881]
[1771128464352,0.07099376,70429.0,70393.0,0.03234816]
[1771128464590,0.56298241,70432.0,70394.0,0.02335881]
[1771128464792,0.00025011,70433.0,70394.0,0.02335881]
[1771128464793,0.56298241,70430.0,70394.0,0.02335881]
[1771128464991,0.00025011,70433.0,70395.0,0.43184]
[1771128465210,0.00025011,70433.0,70396.0,0.43184]
[1771128465344,0.00025011,70433.0,70392.0,0.22]
[1771128465345,0.00025011,70433.0,70395.0,0.09108]
[1771128465550,0.07102978,70393.0,70364.0,0.02335881]
[1771128465747,0.56298241,70417.0,70377.0,0.07104589]
[1771128465949,0.56298241,70415.0,70365.0,0.4318]
[1771128466188,0.56298241,70416.0,70364.0,0.02335881]
[1771128466382,0.07102487,70398.0,70377.0,0.28418217]
[1771128466580,0.56298241,70401.0,70364.0,0.02335881]
[1771128466885,0.56298241,70397.0,70364.0,0.02335881]
[1771128467055,0.00013001,70398.0,70325.0,0.02335881]
[1771128467056,0.49087986,70380.0,70325.0,0.02335881]
[1771128467379,0.07106888,70355.0,70330.0,0.09116]
[1771128467504,0.67843031,70378.0,70330.0,0.09116]
[1771128467505,0.56298241,70374.0,70330.0,0.58203986]
[1771128467709,0.56298241,70374.0,70330.0,0.09116]
[1771128467903,0.56298241,70374.0,70341.0,0.09104]
[1771128468105,0.07106662,70357.0,70342.0,0.07108128]
[1771128468308,0.56298241,70377.0,70341.0,0.09104]
[1771128468512,0.07104694,70376.0,70341.0,0.09104]
[1771128468721,0.00012994,70377.0,70343.0,0.07108027]
[1771128468922,0.56298241,70382.0,70365.0,0.07105789]
[1771128469123,0.34064,70397.0,70365.0,0.00043366]
[1771128469344,0.07105003,70373.0,70365.0,0.00043366]
[1771128469565,0.56298241,70382.0,70365.0,0.00043366]
[1771128469766,0.56298241,70396.0,70365.0,0.00043366]
[1771128469972,0.0004,70367.0,70365.0,0.00043366]
[1771128470174,0.34064,70397.0,70380.0,0.00013999]
[1771128470411,0.09104,70398.0,70365.0,0.00043366]
[1771128470827,0.10928,70412.0,70370.0,0.49087986]
[1771128471026,0.00015678,70392.0,70385.0,0.28414787]
[1771128471235,0.00015678,70392.0,70382.0,0.07104089]
[1771128471461,0.00015678,70392.0,70372.0,0.09104]
[1771128471674,0.0004,70382.0,70372.0,0.09104]
[1771128471919,0.07105603,70367.0,70365.0,0.00043366]
[1771128472115,0.07104824,70375.0,70365.0,0.00043366]
[1771128472318,0.0004,70382.0,70365.0,0.00043366]
[1771128472472,0.07104715,70376.0,70365.0,0.07149082]
[1771128473042,0.28417126,70381.0,70365.0,0.00043366]
[1771128473271,0.07104794,70376.0,70365.0,0.00043366]
[1771128473474,0.0004,70382.0,70365.0,0.00043366]
[1771128473475,0.28417694,70379.0,70365.0,0.00043366]
[1771128473671,0.07104924,70374.0,70363.0,0.07049366]
[1771128473873,0.07104924,70374.0,70360.0,0.07118117]